bitfinex-derivatives/quotes_ETHF0:USTF0_20250621
["timestamp","ask_amount","ask_price","bid_price","bid_amount"]
[1750519628110,0.82775,2415.8,2415.6,4.10406599]
[1750519628316,0.82775,2415.8,2415.7,0.82776]
[1750519628615,0.82776,2415.7,2415.6,4.10404599]
[1750519629317,0.82776,2415.7,2415.6,3.27627599]
[1750519631913,4.03556,2415.7,2415.6,0.06847599]
[1750519632315,9.03556,2415.7,2415.6,0.06847599]
[1750519632511,9.74676,2415.7,2415.6,0.06847599]
[1750519632716,11.03346,2415.7,2415.6,0.06847599]
[1750519633414,6.03346,2415.7,2415.6,0.06847599]
[1750519633608,11.03346,2415.7,2415.6,0.06847599]
[1750519635521,6.03346,2415.7,2415.6,0.06847599]
[1750519635721,11.03346,2415.7,2415.6,0.06847599]
[1750519637013,3.2078,2415.7,2415.6,0.06847599]
[1750519637219,3.2078,2415.7,2415.6,0.89626599]
[1750519637419,3.2078,2416.0,2415.6,0.06847599]
[1750519637621,3.2078,2416.0,2415.9,0.82769]
[1750519637922,0.82761,2416.2,2416.0,0.82762]
[1750519638117,0.82761,2416.2,2416.0,0.82764]
[1750519638318,0.8276,2416.2,2415.8,6.703]
[1750519638523,0.82762,2416.1,2415.9,0.6665]
[1750519638827,2.06897,2416.2,2415.7,0.6989]
[1750519639033,0.82773,2415.8,2415.6,0.06847599]
[1750519639232,0.82771,2415.9,2415.6,0.89625599]
[1750519639535,0.82776,2415.7,2415.6,0.06847599]
[1750519639728,0.82776,2415.7,2415.6,1.40567599]
[1750519639923,0.82776,2415.7,2415.6,0.06847599]
[1750519641637,0.82776,2415.7,2415.6,1.49377599]
[1750519641926,0.82776,2415.7,2415.6,0.06847599]
[1750519642432,0.82776,2415.7,2415.6,3.27627599]
[1750519642728,2.7278,2415.9,2415.6,3.27627599]
[1750519643033,0.82773,2415.8,2415.6,4.10404599]
[1750519643326,3.2078,2416.0,2415.9,0.82769]
[1750519643738,0.82769,2415.9,2415.8,8.2328]
[1750519643937,0.82769,2415.9,2415.8,7.4051]
[1750519644329,0.82769,2415.9,2415.8,8.23282]
[1750519644837,0.82769,2415.9,2415.8,1.52982]
[1750519645137,0.82769,2415.9,2415.8,8.23282]
[1750519645337,4.03546,2416.0,2415.9,0.82769]
[1750519645639,3.2078,2416.0,2415.9,0.82769]
[1750519646238,3.2078,2416.4,2415.8,7.4051]
[1750519646439,0.8276,2416.2,2416.1,0.82762]
[1750519646942,3.2078,2416.4,2415.8,6.703]
[1750519647138,0.82768,2416.0,2415.9,6.703]
[1750519647337,3.2078,2416.4,2415.9,6.703]
[1750519647533,0.82759,2416.2,2416.1,0.8276]
[1750519648235,0.82759,2416.2,2415.9,6.703]
[1750519648236,0.82757,2416.3,2416.2,0.82758]
[1750519648436,0.82762,2416.1,2416.0,0.82763]
[1750519648838,0.8276,2416.2,2416.1,0.82762]
[1750519649144,0.82762,2416.1,2416.0,7.52963]
[1750519649342,0.82762,2416.1,2416.0,6.702]
[1750519649643,0.82765,2416.0,2415.9,0.82765]
[1750519649834,0.82765,2416.0,2415.9,7.52965]
[1750519650335,0.82764,2416.1,2416.0,0.82765]
[1750519650642,0.82765,2416.0,2415.9,7.52967]
[1750519650936,0.82771,2415.9,2415.8,0.82771]
[1750519651139,0.82771,2415.9,2415.8,7.52971]
[1750519651542,0.82767,2416.0,2415.9,0.82768]
[1750519651745,0.82764,2416.1,2416.0,0.82764]
[1750519652043,0.82761,2416.2,2415.9,3.2078]
[1750519652336,0.82759,2416.2,2415.9,3.2078]
[1750519652541,3.2078,2416.4,2415.9,3.2078]
[1750519652744,4.03534,2416.4,2415.9,5.27699]
[1750519652944,4.03534,2416.4,2416.3,0.82755]
[1750519653146,3.2078,2416.4,2416.3,0.82755]
[1750519653341,0.8275,2416.5,2416.4,0.82752]
[1750519653741,3.2078,2416.7,2416.3,1.47442]
[1750519653742,0.82752,2416.4,2416.3,1.47442]
[1750519653940,0.82752,2416.4,2416.3,0.6469]
[1750519654135,6.92773332,2416.5,2416.2,6.702]
[1750519654338,0.82755,2416.3,2416.2,6.702]
[1750519654642,0.82754,2416.4,2416.3,0.82754]
[1750519655041,0.82755,2416.3,2416.2,7.52956]
[1750519655445,0.82755,2416.4,2416.3,0.82755]
[1750519655940,0.82755,2416.4,2416.2,7.52956]
[1750519656146,0.82755,2416.3,2416.2,6.702]
[1750519657443,0.82755,2416.3,2416.2,7.52958]
[1750519658046,2.60157799,2416.4,2416.1,0.6744]
[1750519658256,0.82758,2416.2,2416.1,0.6744]
[1750519658546,3.42915799,2416.2,2416.1,0.6744]
[1750519660241,0.82758,2416.2,2416.1,0.6744]
[1750519661048,0.82765,2416.0,2415.9,6.702]
[1750519662453,0.82769,2415.9,2415.8,0.71797599]
[1750519662661,3.42926799,2415.9,2415.8,0.06847599]
[1750519663555,4.75686799,2415.9,2415.8,0.06847599]
[1750519667662,9.75686799,2415.9,2415.8,0.06847599]
[1750519668055,9.75686799,2415.9,2415.8,5.99e-06]
[1750519668259,10.86185756,2415.9,2415.8,5.99e-06]
[1750519671557,5.86185756,2415.9,2415.8,5.99e-06]
[1750519671766,2.15529,2415.9,2415.8,5.99e-06]
[1750519671961,0.82769,2415.9,2415.8,5.99e-06]
[1750519672963,3.42926799,2415.9,2415.8,5.99e-06]
[1750519673165,4.76196799,2415.9,2415.8,5.99e-06]
[1750519676872,3.42926799,2415.9,2415.8,5.99e-06]
[1750519677864,4.77666799,2415.9,2415.8,5.99e-06]
[1750519678471,3.42926799,2415.9,2415.8,5.99e-06]
[1750519681663,4.71456799,2415.9,2415.8,5.99e-06]
[1750519683473,0.82793,2415.2,2415.1,3.2078]
[1750519683668,0.82803,2414.9,2414.8,0.6425]
[1750519683875,3.42960799,2414.9,2414.8,0.6425]
[1750519684068,0.8281,2414.7,2414.6,0.7036]
[1750519684374,0.8281,2414.7,2414.0,3.2078]
[1750519684375,2.07034,2414.6,2414.0,3.2078]
[1750519684579,3.42986799,2414.2,2414.0,3.2078]
[1750519684784,0.82826,2414.3,2414.1,1.3388]
[1750519685081,0.82827,2414.2,2414.1,1.3388]
[1750519685288,0.8283,2414.1,2414.0,3.2078]
[1750519685582,0.82825,2414.3,2414.0,4.03611]
[1750519685788,8.77312285,2414.6,2414.0,4.5466]
[1750519685980,0.8283,2414.1,2414.0,4.5466]
[1750519686180,18.90922285,2414.6,2414.0,4.5466]
[1750519686382,0.8283,2414.1,2414.0,4.5466]
[1750519686579,3.2078,2414.1,2413.5,3.2078]
[1750519686782,4.86502285,2414.0,2413.5,4.5043]
[1750519686986,4.86502285,2414.0,2413.7,0.82842]
[1750519687180,2.07049,2414.5,2413.6,1.3485]
[1750519687181,6.682,2414.3,2413.6,1.3485]
[1750519687386,3.2078,2414.4,2413.6,8.0305]
[1750519687691,4.03602,2414.4,2414.0,0.82833]
[1750519687883,3.2078,2414.4,2414.3,0.82824]
[1750519688779,3.2078,2414.4,2414.2,0.82825]
[1750519688984,3.2078,2414.4,2414.3,1.3485]
[1750519689185,3.2078,2414.4,2414.3,2.17674]
[1750519689386,3.2078,2414.4,2414.3,1.3485]
[1750519689584,3.2078,2414.4,2414.1,2.14019]
[1750519690190,3.2078,2414.4,2414.1,1.3119]
[1750519690384,3.2078,2414.4,2414.1,2.14018]
[1750519690690,3.2078,2414.4,2414.2,0.82826]
[1750519691188,3.2078,2414.4,2414.3,0.82824]
[1750519694084,3.2078,2414.4,2414.1,1.3119]
[1750519694279,4.03601,2414.4,2414.2,0.82827]
[1750519694488,3.2078,2414.4,2414.3,0.82824]
[1750519695684,26.2579,2414.9,2414.7,0.82808]
[1750519695685,4.03586,2414.9,2414.7,0.82808]
[1750519695885,0.82806,2414.8,2414.6,0.82812]
[1750519696693,3.2078,2414.9,2414.6,0.82812]
[1750519696894,4.03586,2414.9,2414.7,0.8281]
[1750519697090,0.82806,2414.8,2414.6,0.82811]
[1750519697282,4.86502285,2414.8,2414.4,1.3771]
[1750519697487,0.82816,2414.6,2414.5,0.82817]
[1750519697891,0.82812,2414.7,2414.5,0.82817]
[1750519698395,5.69310285,2414.8,2414.5,0.82817]
[1750519698598,5.69310285,2414.8,2414.6,0.82812]
[1750519698793,4.86502285,2414.8,2414.6,0.82812]
[1750519698991,5.69310285,2414.8,2414.6,0.82812]
[1750519699489,0.8281,2414.7,2414.5,0.82814]
[1750519699800,0.8281,2414.7,2414.6,0.89660599]
[1750519699997,3.2078,2414.9,2414.8,0.82806]
[1750519700198,3.2078,2414.9,2414.7,2.22097]
[1750519700395,8.07282285,2414.9,2414.6,0.06847599]
[1750519700698,0.8281,2414.7,2414.6,0.06847599]
[1750519701398,8.07282285,2414.9,2414.6,0.89658599]
[1750519701602,3.2078,2414.9,2414.6,0.06847599]
[1750519701804,0.82808,2414.8,2414.6,0.89657599]
[1750519702203,0.82808,2414.8,2414.7,0.8281]
[1750519702501,3.2078,2414.9,2414.8,0.82806]
[1750519702996,4.03583,2414.9,2414.8,0.82806]
[1750519703396,0.82802,2415.0,2414.9,0.82803]
[1750519703695,0.828,2415.0,2414.9,0.82803]
[1750519703894,12.92382285,2415.2,2414.8,0.82804]
[1750519704093,0.82803,2415.0,2414.8,2.15414]
[1750519704299,0.82803,2414.9,2414.8,2.15414]
[1750519704702,12.92382285,2415.2,2414.8,2.15414]
[1750519704905,12.92382285,2415.2,2414.8,2.15415]
[1750519705104,0.828,2415.0,2414.9,0.82802]
[1750519705402,0.82803,2414.9,2414.8,1.3261]
[1750519706505,0.82802,2415.0,2414.8,2.15416]
[1750519706807,0.82803,2414.9,2414.8,2.15416]
[1750519707306,0.82802,2415.0,2414.8,2.15416]
[1750519707707,0.82803,2414.9,2414.8,2.15416]
[1750519708316,0.82803,2414.9,2414.8,1.3261]
[1750519710208,0.82803,2414.9,2414.8,0.6729]
[1750519710410,0.82808,2414.8,2414.7,0.8281]
[1750519710610,0.82806,2414.8,2414.7,0.8281]
[1750519712012,0.82805,2414.9,2414.8,0.82806]
[1750519712203,0.82802,2415.0,2414.8,0.32657274]
[1750519712404,3.2078,2415.2,2414.9,0.7098]
[1750519712603,0.82794,2415.2,2415.1,0.82795]
[1750519712907,0.82794,2415.2,2415.1,0.82796]
[1750519713109,5.2533,2415.6,2415.0,0.6606]
[1750519713297,0.6671,2415.6,2415.1,5.27771]
[1750519713502,0.82778,2415.7,2415.5,0.82782]
[1750519713801,0.82778,2415.7,2415.5,3.55452]
[1750519714315,0.82779,2415.6,2415.5,1.3704]
[1750519715808,0.82779,2415.6,2415.5,0.7098]
[1750519717014,0.82779,2415.6,2415.5,7.4198]
[1750519718607,4.86502285,2415.8,2415.4,4.03564]
[1750519718608,0.82782,2415.5,2415.4,3.2078]
[1750519718798,0.82789,2415.3,2415.2,0.6451]
[1750519719607,0.82793,2415.2,2415.1,0.82795]
[1750519719808,0.82796,2415.1,2415.0,0.668]
[1750519720005,0.82795,2415.2,2415.0,8.205]
[1750519720509,0.82796,2415.1,2415.0,1.496]
[1750519720704,0.82795,2415.2,2415.0,1.496]
[1750519720907,0.82795,2415.2,2415.1,0.82796]
[1750519721698,0.82792,2415.3,2415.2,0.82792]
[1750519721913,0.82794,2415.2,2415.1,0.82794]
[1750519722305,0.82796,2415.1,2415.0,1.49597]
[1750519723117,4.5056,2415.4,2415.1,0.82795]
[1750519723118,0.82796,2415.2,2415.1,0.82795]
[1750519723916,0.82792,2415.3,2415.2,0.82791]
[1750519724109,0.82794,2415.2,2415.1,0.82794]
[1750519724309,0.82792,2415.3,2415.2,0.82791]
[1750519725019,0.82795,2415.2,2415.1,0.82794]
[1750519725614,0.82792,2415.3,2415.2,0.82791]
[1750519726913,2.12568,2415.4,2415.3,0.82789]
[1750519727220,0.82791,2415.3,2415.2,0.82791]
[1750519728512,0.82795,2415.2,2415.1,0.82794]
[1750519729215,0.82792,2415.3,2415.2,0.82789]
[1750519729421,0.82796,2415.2,2415.1,0.82795]
[1750519729622,0.82796,2415.1,2415.0,1.49598]
[1750519730014,0.82796,2415.1,2415.0,0.668]
[1750519730323,0.82789,2415.3,2415.2,0.06847599]
[1750519730617,5.45209,2415.3,2415.2,0.06847599]
[1750519730823,13.05728411,2415.3,2415.2,0.06847599]
[1750519731518,19.73228411,2415.3,2415.2,0.06847599]
[1750519731919,20.83892358,2415.3,2415.2,0.06847599]
[1750519732317,19.73228411,2415.3,2415.2,0.06847599]
[1750519732526,5.45209,2415.3,2415.2,0.06847599]
[1750519732722,4.03569,2415.3,2415.2,0.06847599]
[1750519733024,3.2078,2415.3,2415.2,0.89640599]
[1750519733619,0.82789,2415.3,2415.2,0.06847599]
[1750519737626,7.55595426,2415.5,2415.2,0.06847599]
[1750519737811,0.82789,2415.3,2415.2,0.06847599]
[1750519738422,0.82788,2415.4,2415.2,0.89638599]
[1750519739216,0.82789,2415.3,2415.2,0.89638599]
[1750519739716,0.82788,2415.4,2415.2,0.89638599]
[1750519739922,0.82788,2415.4,2415.3,1.50559]
[1750519740122,1.53375,2415.5,2415.3,1.50559]
[1750519740323,0.82785,2415.5,2415.3,1.50556]
[1750519740519,0.82786,2415.4,2415.3,2.16396]
[1750519741025,4.03559,2415.6,2415.5,0.82782]
[1750519741416,3.2078,2415.6,2415.5,0.82782]
[1750519741814,4.03559,2415.6,2415.5,0.82782]
[1750519742015,0.82782,2415.5,2415.3,9.3473]
[1750519742218,0.82782,2415.5,2415.3,10.17517]
[1750519742729,0.82784,2415.5,2415.4,0.82786]
[1750519742913,4.03562,2415.6,2415.5,0.82782]
[1750519743224,4.03562,2415.6,2415.3,2.6665]
[1750519743225,3.2078,2415.9,2415.4,5.27743]
[1750519743524,0.82779,2415.6,2415.5,1.3304]
[1750519743712,0.82779,2415.6,2415.5,8.0064]
[1750519743922,0.82779,2415.6,2415.5,8.83422]
[1750519744323,0.82777,2415.7,2415.6,0.82778]
[1750519744523,3.2078,2415.9,2415.5,8.0064]
[1750519744524,4.03551,2415.9,2415.5,8.0064]
[1750519744727,4.03551,2415.9,2415.6,1.3055]
[1750519745031,3.8993,2416.2,2415.9,0.82767]
[1750519745327,0.82762,2416.1,2416.0,0.6952]
[1750519745514,0.82762,2416.1,2416.0,1.52285]
[1750519745714,0.82762,2416.1,2416.0,0.6952]
[1750519745924,0.82762,2416.1,2416.0,1.52285]
[1750519746125,0.82762,2416.1,2416.0,2.82835]
[1750519746433,0.82762,2416.1,2416.0,2.0007]
[1750519746631,0.82762,2416.1,2416.0,0.6952]
[1750519747722,4.03541,2416.2,2416.0,1.52283]
[1750519748023,4.03541,2416.2,2416.0,2.82243]
[1750519748225,0.82762,2416.1,2416.0,2.82243]
[1750519748525,4.03541,2416.2,2416.0,2.82243]
[1750519748922,4.03541,2416.2,2416.1,0.82762]
[1750519749228,0.82726,2417.2,2416.5,2.06871]
[1750519749530,3.2078,2417.7,2417.1,4.86065426]
[1750519749828,0.82711,2417.6,2417.5,3.2078]
[1750519750124,7.51115426,2418.1,2417.5,3.2078]
[1750519750326,0.82698,2418.0,2417.5,3.2078]
[1750519750531,0.82695,2418.1,2417.8,0.82702]
[1750519750733,0.82695,2418.1,2417.9,3.2078]
[1750519751029,0.82692,2418.2,2417.9,4.03479]
[1750519751227,0.82692,2418.2,2418.0,0.82696]
[1750519751633,0.82692,2418.2,2418.0,0.82697]
[1750519751926,0.82688,2418.3,2418.0,0.82697]
[1750519752126,5.9102,2418.5,2418.0,2.14915]
[1750519752320,5.9102,2418.5,2418.0,7.9952]
[1750519752522,0.82688,2418.3,2418.0,8.82216]
[1750519752718,0.82688,2418.3,2418.1,0.82693]
[1750519752922,5.9102,2418.5,2418.0,7.9952]
[1750519753221,0.82693,2418.2,2418.0,7.9952]
[1750519753424,5.9102,2418.5,2418.1,6.673]
[1750519753626,0.8269,2418.2,2418.1,6.673]
[1750519755036,0.8269,2418.2,2417.9,4.0348]
[1750519755331,0.82693,2418.1,2418.0,6.765]
[1750519755725,0.82697,2418.0,2417.9,3.2078]
[1750519756130,6.92810426,2418.0,2417.6,6.765]
[1750519756328,1.2999,2417.9,2417.6,6.765]
[1750519756536,0.82707,2417.7,2417.6,6.765]
[1750519759237,0.82706,2417.8,2417.6,6.765]
[1750519759734,1.2999,2417.9,2417.6,6.765]
[1750519759936,2.06739,2418.1,2417.6,6.765]
[1750519760138,0.82707,2417.7,2417.6,6.765]
[1750519762038,0.82711,2417.6,2417.5,3.2078]
[1750519762239,0.82711,2417.6,2417.5,9.9708]
[1750519762535,0.82711,2417.6,2417.5,10.79794]
[1750519763142,0.8271,2417.7,2417.6,0.8271]
[1750519763439,0.82711,2417.6,2417.5,10.79792]
[1750519763640,0.82711,2417.6,2417.5,9.9708]
[1750519764343,0.82711,2417.6,2417.5,10.79794]
[1750519767039,0.8271,2417.7,2417.6,0.82709]
[1750519767239,0.8271,2417.6,2417.5,10.79792]
[1750519767944,0.8271,2417.6,2417.5,9.9708]
[1750519768744,0.8271,2417.6,2417.5,10.79794]
[1750519769645,0.8271,2417.6,2417.5,9.9708]
[1750519769844,0.8271,2417.6,2417.5,3.2078]
[1750519771038,0.8271,2417.6,2417.5,4.03494]
[1750519771443,2.1068,2417.9,2417.5,3.2078]
[1750519771739,0.8271,2417.7,2417.6,0.82709]
[1750519771940,2.1068,2417.9,2417.5,4.03492]
[1750519771941,0.82711,2417.6,2417.5,4.03492]
[1750519772147,2.1068,2417.9,2417.5,3.2078]
[1750519772350,0.82705,2417.8,2417.7,0.82705]
[1750519772747,0.82707,2417.7,2417.6,0.82708]
[1750519773047,0.82711,2417.6,2417.5,4.03492]
[1750519773542,0.82711,2417.6,2417.5,10.79692]
[1750519773738,0.82711,2417.6,2417.5,9.9698]
[1750519774946,0.82711,2417.6,2417.5,10.03827599]
[1750519776243,0.82711,2417.6,2417.5,3.27627599]
[1750519776446,9.03491,2417.6,2417.5,0.06847599]
[1750519776844,10.34151,2417.6,2417.5,0.06847599]
[1750519777041,5.34151,2417.6,2417.5,0.06847599]
[1750519778249,0.82711,2417.6,2417.5,0.06847599]
[1750519778557,3.28149031,2417.6,2417.5,0.06847599]
[1750519780442,3.93749031,2417.6,2417.5,0.06847599]
[1750519780951,7.14529031,2417.6,2417.5,0.06847599]
[1750519782948,9.74484839,2417.6,2417.5,0.06847599]
[1750519783653,5.79349031,2417.6,2417.5,0.06847599]
[1750519783846,8.39304839,2417.6,2417.5,0.06847599]
[1750519784046,9.71004839,2417.6,2417.5,0.06847599]
[1750519787455,14.71004839,2417.6,2417.5,0.06847599]
[1750519787753,14.71004839,2417.6,2417.5,5.99e-06]
[1750519788464,0.82738,2416.8,2416.7,3.8849]
[1750519789163,0.82738,2416.8,2416.7,0.6771]
[1750519789358,0.82745,2416.6,2416.5,0.6697]
[1750519794455,0.82745,2416.6,2416.5,1.49718]
[1750519794857,0.82745,2416.6,2416.5,2.80338]
[1750519795058,0.82745,2416.6,2416.5,1.9759]
[1750519796260,0.82745,2416.6,2416.5,2.80338]
[1750519796860,0.82745,2416.6,2416.5,1.9759]
[1750519798262,0.82745,2416.6,2416.5,2.80338]
[1750519799260,0.82744,2416.7,2416.5,2.80338]
[1750519799460,0.82745,2416.6,2416.5,2.80338]
[1750519800057,0.82745,2416.6,2416.5,1.9759]
[1750519800556,0.82744,2416.7,2416.5,2.80335]
[1750519800756,0.82745,2416.6,2416.5,0.6697]
[1750519804266,0.82748,2416.5,2416.4,3.8849]
[1750519806071,0.82748,2416.5,2416.4,5.2422]
[1750519806454,0.82748,2416.5,2416.4,2.0344]
[1750519806964,3.2078,2417.0,2416.5,2.06871]
[1750519807167,0.82731,2417.0,2416.9,0.82731]
[1750519807468,0.82728,2417.1,2417.0,0.82731]
[1750519807667,0.82727,2417.2,2417.1,0.82727]
[1750519807967,0.82727,2417.2,2417.1,1.3573]
[1750519808471,4.03503,2417.3,2417.2,0.82724]
[1750519809065,4.03501,2417.3,2417.2,0.82724]
[1750519810066,0.82721,2417.3,2417.2,0.82722]
[1750519811972,0.82716,2417.5,2417.4,0.82716]
[1750519812173,0.82716,2417.5,2417.1,4.5651]
[1750519812174,2.59955808,2417.5,2417.1,4.5651]
[1750519812471,2.59955808,2417.5,2417.2,7.55023]
[1750519812972,0.82721,2417.3,2417.2,6.723]
[1750519813169,0.82724,2417.2,2417.1,5.39235]
[1750519813362,0.82724,2417.2,2417.1,12.11535]
[1750519813973,0.82724,2417.2,2417.1,8.90755]
[1750519814472,0.82723,2417.3,2417.2,0.82723]
[1750519814673,0.8272,2417.4,2417.3,0.8272]
[1750519815167,0.82722,2417.3,2417.2,0.82722]
[1750519815367,0.82724,2417.2,2417.1,8.90756]
[1750519816873,0.82723,2417.3,2417.2,0.82723]
[1750519817275,0.82719,2417.4,2417.3,0.8272]
[1750519817771,0.82713,2417.6,2417.3,8.2078]
[1750519817971,0.82713,2417.6,2417.5,0.82714]
[1750519818167,0.82708,2417.7,2417.6,0.82709]
[1750519818371,0.82706,2417.8,2417.7,0.82706]
[1750519818867,3.2078,2418.0,2417.9,0.827]
[1750519819769,0.827,2417.9,2417.8,2.18442]
[1750519819971,0.827,2417.9,2417.8,1.3574]
[1750519820172,0.827,2417.9,2417.8,7.3131]
[1750519820979,0.827,2417.9,2417.8,8.14014]
[1750519821181,0.827,2417.9,2417.8,7.3131]
[1750519822280,0.82707,2417.7,2417.6,3.2078]
[1750519822471,0.82706,2417.8,2417.7,0.82706]
[1750519822873,0.82701,2417.9,2417.8,0.82702]
[1750519823272,3.2078,2418.0,2417.9,0.827]
[1750519823486,3.2078,2418.0,2417.9,7.482]
[1750519823878,4.03468,2418.3,2418.2,0.8269]
[1750519824072,4.03468,2418.3,2418.2,7.4819]
[1750519824267,3.2078,2418.3,2418.2,7.4819]
[1750519824670,3.2078,2418.6,2418.3,0.82685]
[1750519824867,0.82687,2418.3,2418.2,10.68968]
[1750519825072,0.82686,2418.4,2418.3,0.82686]
[1750519825272,0.82687,2418.3,2418.2,10.68968]
[1750519826170,0.82687,2418.3,2418.2,9.8628]
[1750519827080,0.82687,2418.3,2418.2,10.6897]
[1750519827277,2.59955808,2418.5,2418.2,10.6897]
[1750519827479,0.82686,2418.4,2418.3,0.82686]
[1750519827876,0.82686,2418.4,2418.2,10.68967]
[1750519828082,0.82687,2418.3,2418.2,10.68967]
[1750519828781,0.82687,2418.3,2418.2,10.68867]
[1750519828981,4.5617,2418.6,2418.2,9.8618]
[1750519829282,0.82687,2418.3,2418.2,10.68868]
[1750519829781,4.5617,2418.6,2418.2,9.8618]
[1750519829782,0.82682,2418.5,2418.2,9.8618]
[1750519829980,5.38847,2418.6,2418.2,11.92899]
[1750519830183,3.2078,2418.6,2418.5,0.8268]
[1750519830375,3.2078,2418.6,2418.5,7.4808]
[1750519830579,3.2078,2418.6,2418.5,6.654]
[1750519830580,0.82676,2418.6,2418.5,6.654]
[1750519830780,0.8268,2418.5,2418.4,0.6454]
[1750519831082,0.82687,2418.3,2418.2,3.2078]
[1750519831279,0.82686,2418.4,2418.2,9.8618]
[1750519831479,0.82686,2418.4,2418.3,0.82686]
[1750519832182,0.82687,2418.3,2418.2,10.68869]
[1750519832678,0.82687,2418.3,2418.2,3.2078]
[1750519832872,3.42642808,2418.3,2418.2,9.8618]
[1750519833074,3.42642808,2418.3,2418.2,10.6887]
[1750519833277,0.82687,2418.3,2418.2,10.6887]
[1750519833985,0.82687,2418.3,2418.2,9.8618]
[1750519835284,0.82687,2418.3,2418.2,3.2078]
[1750519835585,0.8269,2418.2,2418.1,0.82691]
[1750519835780,0.8269,2418.2,2418.1,7.48091]
[1750519835977,2.1483,2418.2,2418.1,7.48091]
[1750519836177,0.82688,2418.3,2418.2,0.82688]
[1750519836585,0.8269,2418.2,2418.1,7.48091]
[1750519837380,1.3214,2418.3,2418.2,0.8269]
[1750519837790,1.3495,2418.4,2418.3,0.82687]
[1750519837979,2.14819,2418.6,2418.5,0.8268]
[1750519838383,3.2078,2418.7,2418.6,0.82676]
[1750519838580,4.03453,2418.7,2418.6,0.82676]
[1750519838885,3.92095808,2419.0,2418.4,6.653]
[1750519838886,4.5292,2419.0,2418.9,0.82666]
[1750519839089,0.82665,2419.0,2418.7,6.653]
[1750519839285,0.82665,2419.0,2418.9,0.82666]
[1750519839485,0.6775,2419.1,2419.0,0.82663]
[1750519839486,1.50412,2419.1,2419.0,0.82663]
[1750519839793,0.82664,2419.0,2418.9,0.82664]
[1750519839980,0.6775,2419.1,2419.0,0.82663]
[1750519840492,0.82657,2419.2,2419.1,0.82659]
[1750519840787,4.03434,2419.3,2419.2,0.82656]
[1750519841189,3.2078,2419.3,2419.2,0.82656]
[1750519841391,4.03432,2419.3,2419.2,0.82656]
[1750519841586,0.82656,2419.2,2419.1,0.82657]
[1750519841781,0.82659,2419.1,2419.0,7.4796]
[1750519841982,0.82669,2418.9,2418.8,6.653]
[1750519842295,0.82666,2419.0,2418.8,7.47967]
[1750519843089,0.82666,2418.9,2418.8,7.47967]
[1750519843285,2.59955808,2419.0,2418.8,6.653]
[1750519843594,0.8267,2418.8,2418.7,6.653]
[1750519843896,0.82673,2418.7,2418.6,47.636]
[1750519844590,2.59955808,2418.8,2418.5,3.2078]
[1750519844591,0.82676,2418.6,2418.5,6.653]
[1750519844791,4.09051808,2418.6,2418.5,6.653]
[1750519844993,0.82683,2418.4,2418.3,6.653]
[1750519845185,0.82687,2418.3,2418.2,0.06847599]
[1750519845386,0.82687,2418.3,2418.2,6.72147599]
[1750519845788,2.0813,2418.5,2418.2,6.72147599]
[1750519846193,0.82684,2418.4,2418.3,0.82685]
[1750519846396,2.90812,2418.5,2418.3,0.82685]
[1750519846690,1.49522,2418.5,2418.3,0.82685]
[1750519846892,1.49098,2418.6,2418.4,0.82683]
[1750519847193,0.8268,2418.5,2418.4,0.82683]
[1750519847590,3.2078,2418.7,2418.2,6.75547599]
[1750519847788,2.59955808,2418.9,2418.4,3.2078]
[1750519847984,0.82674,2418.7,2418.4,3.2078]
[1750519848190,2.59955808,2419.1,2418.4,3.2078]
[1750519848405,0.82671,2418.8,2418.7,0.82671]
[1750519848696,1.9906,2419.2,2418.7,6.687]
[1750519848896,0.82661,2419.1,2419.0,0.82661]
[1750519849091,0.676,2419.2,2418.8,0.82666]
[1750519849292,0.676,2419.2,2418.9,0.82665]
[1750519849495,0.82664,2419.0,2418.9,0.82665]
[1750519849694,0.82667,2418.9,2418.8,0.82667]
[1750519850196,0.82665,2419.0,2418.8,0.82667]
[1750519850590,0.82666,2418.9,2418.7,7.5137]
[1750519851193,0.82666,2418.9,2418.8,7.51369]
[1750519851487,0.82665,2419.0,2418.9,0.82666]
[1750519851998,0.82665,2419.0,2418.8,7.51367]
[1750519852598,0.82666,2418.9,2418.8,7.51367]
[1750519852793,0.82666,2418.9,2418.8,0.82667]
[1750519852993,0.82666,2418.9,2418.8,7.51367]
[1750519853599,0.82665,2419.0,2418.8,7.51367]
[1750519853897,0.82665,2419.0,2418.9,6.687]
[1750519854099,0.82665,2419.0,2418.8,7.51367]
[1750519854295,0.82665,2419.0,2418.9,0.82666]
[1750519854504,5.80735808,2419.3,2419.0,0.82659]
[1750519854689,0.82659,2419.2,2419.0,0.82659]
[1750519854888,0.82659,2419.2,2418.8,6.687]
[1750519854889,3.2078,2419.3,2418.8,8.75369]
[1750519855091,3.26455808,2419.4,2419.1,0.82658]
[1750519855092,0.82656,2419.2,2419.1,0.82658]
[1750519855496,0.82655,2419.3,2419.2,0.82655]
[1750519855691,0.82656,2419.2,2419.1,0.82657]
[1750519855894,0.82655,2419.3,2419.2,0.82656]
[1750519856106,0.82656,2419.2,2419.0,3.9063]
[1750519856399,0.82654,2419.3,2419.2,0.82655]
[1750519856596,3.2078,2419.7,2419.2,6.687]
[1750519856906,5.80735808,2419.7,2419.3,0.82652]
[1750519857105,0.82649,2419.4,2419.3,0.82652]
[1750519857494,0.82649,2419.4,2419.3,7.51352]
[1750519858305,0.82648,2419.5,2419.4,0.82648]
[1750519858518,0.82643,2419.6,2419.5,0.82644]
[1750519858805,0.82643,2419.6,2419.4,0.82647]
[1750519859006,0.82646,2419.5,2419.4,0.82647]